[Event "Chinese League Div-A Rapid 2022"]
[Site "Fuling,Chongqing"]
[Date "2022.09.10"]
[Round "4.2"]
[White "Peng, Xiongjian"]
[Black "Lou, Yiping"]
[Result "1-0"]
[ECO "A46"]
[WhiteElo "2454"]
[BlackElo "2485"]
[Annotator "TA"]
[PlyCount "97"]
[EventDate "2022.09.07"]
[EventType "team-tourn"]
[EventCountry "CHN"]
[SourceTitle "playchess.com"]
[Source "ChessBase"]
[SourceQuality "1"]
[TimeControl "1500+10"]

{[%evp 14,97,9,6,97,106,104,102,101,96,96,98,99,86,83,62,188,131,148,138,150,147,127,127,152,137,147,165,167,185,193,173,241,222,258,266,356,344,337,273,275,276,331,333,329,312,326,326,373,370,334,332,408,418,435,425,420,83,91,97,87,97,195,158,245,150,245,236,483,474,425,416,1246,1227,1265,1257,1099,1117,3290,3018,6618,5665,12842,12843,12840,12840]} 1. d4 {[%emt 0:00:02]} e6 {[%emt 0:00:04]} 2. Nf3 {[%emt 0:00:07]} Nf6 {[%emt 0:00:06]} 3. g3 {[%emt 0:00:27]} b5 {[%emt 0:00:56]} 4. Bg2 {[%emt 0:00:02]} Bb7 {[%emt 0:00:01]} 5. O-O {[%emt 0:00:04]} c5 {[%emt 0:00:14]} 6. Na3 {[%emt 0:00:02]} Qb6 {[%emt 0:01:12]} 7. c4 {[%emt 0:00:27]} b4 {[%emt 0:02:35]} 8. Nc2 {[%emt 0:00:01]} Nc6 {[%emt 0:00:02] A46: 1 d4 Nf6 2 Nf3 e6: Torre, London and Colle Systems.} (8... cxd4 $11 {remains equal.} 9. Qxd4 (9. Ncxd4 Bc5 $11) (9. Nfxd4 Bxg2 10. Kxg2 Nc6 $11) 9... Bc5) 9. d5 $1 $16 {[%emt 0:01:14]} Na5 {[%emt 0:02:04]} 10. Ne3 {[%emt 0:00:01]} Be7 {[%emt 0:05:59] [#] White is better.} 11. a3 $146 {[%emt 0:00:02]} ({Predecessor:} 11. b3 Ne4 12. Bb2 Bf6 13. Bxf6 gxf6 14. Qc2 f5 15. Ne5 Qc7 16. Bxe4 Qxe5 17. Bg2 {1-0 (59) Tiemann,T (2059)-Vrban,R (2115) Baden 2017}) 11... b3 {[%emt 0:01:58]} 12. Bd2 {[%emt 0:00:42]} O-O {[%emt 0:00:40]} 13. Ne5 {[%emt 0:01:56] Threatens to win with Bxa5.} Rab8 {[%emt 0:00:38]} 14. Rc1 {[%emt 0:05:11]} Ba6 {[%emt 0:03:00]} (14... d6 $14) 15. dxe6 {[%emt 0:01:16]} (15. Bc3 $18) 15... fxe6 {[%emt 0:00:21] [#]} 16. Nxd7 $1 {[%emt 0:00:36][%mdl 512]} Nxd7 {[%emt 0:00:01]} 17. Bxa5 {[%emt 0:00:02][%mdl 64] Discovered Attack} Qxa5 {[%emt 0:00:01]} 18. Qxd7 {[%emt 0:00:02]} Bf6 {[%emt 0:00:08]} 19. Qxe6+ {[%emt 0:00:22]} Kh8 {[%emt 0:00:01]} 20. Rb1 {[%emt 0:00:44]} Rbe8 {[%emt 0:01:17] [#]} 21. Qd7 {[%emt 0:00:25]} Bc8 {[%emt 0:00:28]} 22. Qd3 {[%emt 0:00:20]} Bd4 {[%emt 0:00:46]} (22... Qa4 $142 23. Bf3 Bd4) 23. Qxb3 $18 {[%emt 0:00:37]} Bd7 {[%emt 0:02:09]} 24. Qd3 {[%emt 0:00:25]} Rd8 {[%emt 0:00:27]} 25. b4 {[%emt 0:01:35]} Qa6 {[%emt 0:00:02]} 26. Nd5 {[%emt 0:00:59]} Bf5 {[%emt 0:00:16] [#]} 27. e4 $1 {[%emt 0:00:01]} ({Less strong is} 27. Be4 Bxe4 28. Qxe4 Qxc4 $16) 27... Bg6 {[%emt 0:00:30]} (27... Rxd5 $2 28. b5 Qd6 29. cxd5 $18) 28. b5 {[%emt 0:00:46]} Qa4 {[%emt 0:00:11]} 29. Qb3 {[%emt 0:00:47]} Qa5 {[%emt 0:00:04]} 30. Rbd1 {[%emt 0:00:08]} Bh5 {[%emt 0:00:09] [#]} 31. Rxd4 $1 {[%emt 0:00:47]} cxd4 {[%emt 0:00:02]} 32. Qd3 {[%emt 0:00:04] Prevents Be2.} Rc8 {[%emt 0:00:36]} 33. e5 {[%emt 0:01:25]} Bg6 {[%emt 0:00:28]} 34. Qxd4 {[%emt 0:00:09]} Qxa3 {[%emt 0:00:07]} 35. Be4 $2 {[%emt 0:00:26]} (35. Ne3 $18 {and White stays clearly on top.}) 35... Bxe4 $16 {[%emt 0:01:53]} 36. Qxe4 {[%emt 0:00:01] And now e6 would win.} Qc5 {[%emt 0:00:04]} 37. Ne3 {[%emt 0:00:19] Black must now prevent e6.} Rfe8 {[%emt 0:00:04]} (37... Rce8 $16) 38. f4 $18 {[%emt 0:00:34]} Rcd8 {[%emt 0:00:07] Inhibits Rd1.} (38... Red8 $16) 39. Kf2 {[%emt 0:00:47]} g5 {[%emt 0:01:08]} (39... Rf8 $16) 40. Qc6 {[%emt 0:00:33]} Qxc6 {[%emt 0:00:34]} (40... Rd2+ 41. Kf3 Qf8) 41. bxc6 {[%emt 0:00:01][%cal Bb5c6,Bc6c7][%mdl 32]} gxf4 {[%emt 0:00:08]} 42. gxf4 {[%emt 0:00:01][%cal Bg3f4,Bf4f5][%mdl 4128] Endgame KRR-KRN} Re6 {[%emt 0:00:18]} (42... Rc8 $142 43. Ra1 Rxc6 44. Rxa7 Rh6) 43. c7 {[%emt 0:00:36] White is clearly winning.} Rc8 {[%emt 0:00:15]} 44. Nd5 {[%emt 0:00:07]} Kg7 {[%emt 0:00:06]} 45. Ke3 {[%emt 0:00:07]} Kf7 {[%emt 0:00:05]} 46. Kd4 {[%emt 0:00:02] aiming for f5.} Rh6 {[%emt 0:00:06]} 47. f5 {[%emt 0:00:10] Strongly threatening e6+.} Rxh2 {[%emt 0:00:24]} 48. e6+ {[%emt 0:00:01]} Kf8 {[%emt 0:00:13]} 49. Rb1 {[%emt 0:00:11] Weighted Error Value: White=0.27 (precise) /Black=0.38} 1-0

[Event "Chinese League Div-A Rapid 2022"]
[Site "Fuling,Chongqing"]
[Date "2022.09.10"]
[Round "4.3"]
[White "Wan, Yunguo"]
[Black "Zhang, Zhong"]
[Result "1-0"]
[ECO "B08"]
[WhiteElo "2508"]
[BlackElo "2617"]
[Annotator "TA"]
[PlyCount "103"]
[EventDate "2022.09.07"]
[EventType "team-tourn"]
[EventCountry "CHN"]
[SourceTitle "playchess.com"]
[Source "ChessBase"]
[SourceQuality "1"]
[TimeControl "1500+10"]

{[%evp 11,103,0,29,29,19,22,41,39,58,45,39,34,54,49,72,73,60,41,88,88,95,95,96,84,85,90,91,86,87,69,70,76,64,60,61,65,118,112,112,109,97,31,33,29,30,25,26,24,25,37,62,26,89,0,0,0,52,45,64,53,60,66,119,155,158,145,138,148,231,178,288,272,588,379,888,644,1400,1445,1761,1823,1894,1901,1910,1929,1897,1788,1548,1366,29975,29976,29972,29973,5735,5728]} 1. e4 {[%emt 0:00:04]} d6 {[%emt 0:00:01]} 2. d4 {[%emt 0:00:32]} Nf6 {[%emt 0:00:02]} 3. Nc3 {[%emt 0:00:01]} g6 {[%emt 0:00:01]} 4. Nf3 {[%emt 0:00:43]} Bg7 {[%emt 0:00:04]} 5. h3 {[%emt 0:00:12]} O-O {[%emt 0:00:04]} 6. Be2 {[%emt 0:00:01]} a6 {[%emt 0:00:02]} 7. a4 {[%emt 0:00:15] B08: Pirc Defence: Classical System.} Nc6 {[%emt 0:00:14]} 8. O-O {[%emt 0:00:42]} e6 {[%emt 0:00:15]} 9. a5 {[%emt 0:00:11] [#] White is slightly better.} Bd7 $146 {[%emt 0:01:38]} ({Predecessor:} 9... h6 10. Be3 Kh7 11. Re1 Bd7 12. e5 Nd5 13. Nxd5 exd5 14. Bf4 Be6 15. c3 dxe5 16. dxe5 {0-1 (46) Friedrich,N (2317)-Rowson,J (2594) Porto Mannu 2007}) 10. Bg5 {[%emt 0:00:07] [#] And now e5 would win.} h6 {[%emt 0:00:03]} 11. Be3 {[%emt 0:00:09]} e5 {[%emt 0:00:17]} 12. dxe5 {[%emt 0:01:11]} Nxe5 {[%emt 0:00:15]} 13. Qd2 {[%emt 0:00:31]} Kh7 {[%emt 0:00:21]} 14. Nd4 {[%emt 0:00:56]} c5 {[%emt 0:02:33]} (14... Re8 $14) 15. Nf3 $16 {[%emt 0:00:11]} Bc6 {[%emt 0:00:13]} 16. Nxe5 {[%emt 0:00:27]} dxe5 {[%emt 0:00:02]} 17. Qxd8 {[%emt 0:00:12]} Rfxd8 {[%emt 0:00:02]} 18. f3 {[%emt 0:00:03]} ({Don't play} 18. Bxc5 $6 Nxe4 19. Nxe4 Bxe4 $11) 18... Bf8 {[%emt 0:00:15]} 19. Bc4 {[%emt 0:00:26]} Kg7 {[%emt 0:00:02]} 20. Rfd1 {[%emt 0:00:05]} Rac8 {[%emt 0:00:32]} 21. b3 {[%emt 0:02:50] White is more active.} Be7 {[%emt 0:00:07]} 22. Na4 {[%emt 0:00:28]} Rxd1+ {[%emt 0:02:27]} 23. Rxd1 {[%emt 0:00:02]} Bxa4 {[%emt 0:00:05]} ({Black should try} 23... Rd8 $14 24. Rb1 Nd7) 24. bxa4 {[%emt 0:00:01]} Rd8 {[%emt 0:00:02]} 25. Rb1 {[%emt 0:08:17]} Rd7 {[%emt 0:00:11]} 26. Kf2 {[%emt 0:00:18]} (26. Bf2 $16) 26... Bd8 $14 {[%emt 0:00:14]} 27. Bd3 {[%emt 0:00:00]} Bxa5 {[%emt 0:01:21]} 28. Bxc5 {[%emt 0:00:00]} Nh7 {[%emt 0:00:55]} 29. Be3 {[%emt 0:01:40]} Rc7 {[%emt 0:00:47]} 30. f4 {[%emt 0:00:54]} Bc3 {[%emt 0:01:01]} 31. Rb3 {[%emt 0:00:18]} (31. Bb6 $5 {[%cal Rb6c7]} Rc6 32. Bd8 $14) 31... exf4 {[%emt 0:01:44]} (31... Nf6 $11 {remains equal.}) 32. Bb6 {[%emt 0:01:54]} (32. Bxf4 $16 Bd4+ 33. Ke2) 32... Rc6 $11 {[%emt 0:00:08][%cal Oc6b6]} 33. Ba7 {[%emt 0:00:03][%cal Ob3c3] [#] Strongly threatening Rxc3!} Be5 {[%emt 0:01:11]} ({Black should play} 33... b6 $11) 34. Rxb7 $14 {[%emt 0:00:03]} Ng5 {[%emt 0:00:08]} 35. Kf1 {[%emt 0:00:43]} Ne6 {[%emt 0:01:39]} 36. Rb6 {[%emt 0:00:26]} Rc7 {[%emt 0:07:30] White now steadily converts the win.} ({Better is} 36... Rxb6 $14 37. Bxb6 Nc7) 37. Rxa6 $16 {[%emt 0:01:33]} Bd4 {[%emt 0:00:01]} 38. Bb6 {[%emt 0:02:01]} Bxb6 {[%emt 0:03:49]} 39. Rxb6 {[%emt 0:00:01][%mdl 4096] Endgame KRB-KRN} Nc5 {[%emt 0:00:48]} (39... Ra7 $16) 40. a5 $18 {[%emt 0:00:33][%cal Ba4a5,Ba5a6][%mdl 32]} Nxd3 {[%emt 0:00:01]} (40... Rd7 {is a better defense.}) 41. cxd3 {[%emt 0:00:01][%cal Bc2d3,Bd3d4,Bd4d5][%mdl 32] KR-KR} Rc2 $2 {[%emt 0:00:01]} (41... Rc1+ {is more resistant.} 42. Kf2 Rd1) 42. a6 {[%emt 0:00:34]} Ra2 $2 {[%emt 0:00:01]} (42... Rd2 43. Rb8 Ra2) 43. d4 {[%emt 0:00:45] Threatens to win with d5.} Ra4 {[%emt 0:00:41]} 44. d5 {[%emt 0:00:00]} Kf8 {[%emt 0:00:03]} 45. e5 {[%emt 0:00:00][%cal Be4e5,Be5e6,Be6e7][%mdl 32]} Ke8 {[%emt 0:00:10]} 46. Rb8+ {[%emt 0:00:12]} Kd7 {[%emt 0:00:04]} 47. Rb7+ {[%emt 0:00:08]} Kc8 {[%emt 0:00:00]} 48. Rxf7 {[%emt 0:00:08] Threatening mate with e6.} Rxa6 {[%emt 0:00:01]} 49. Rxf4 {[%emt 0:00:10]} Ra5 {[%emt 0:00:02]} 50. e6 {[%emt 0:00:33]} Kc7 {[%emt 0:00:06]} 51. e7 {[%emt 0:00:14]} Kd7 {[%emt 0:00:01]} 52. d6 {[%emt 0:00:04] Weighted Error Value: White=0.13 (very precise) /Black=0.46} 1-0

[Event "Chinese League Div-A Rapid 2022"]
[Site "Fuling,Chongqing"]
[Date "2022.09.10"]
[Round "4.4"]
[White "Ju, Wenjun"]
[Black "Zhang, Lanlin"]
[Result "1-0"]
[ECO "A13"]
[WhiteElo "2560"]
[BlackElo "2135"]
[Annotator "TA"]
[PlyCount "89"]
[EventDate "2022.09.07"]
[EventType "team-tourn"]
[EventCountry "CHN"]
[SourceTitle "playchess.com"]
[Source "ChessBase"]
[SourceQuality "1"]
[TimeControl "1500+10"]

{[%evp 14,89,14,12,12,12,7,18,12,15,21,0,0,8,7,8,47,30,21,13,27,9,70,66,91,79,66,17,46,16,50,0,0,0,6,3,17,0,43,0,20,14,20,0,91,95,95,110,66,38,115,26,149,139,143,128,156,133,126,95,107,13,8,8,189,0,0,0,0,-428,-69,-72,245,227,29995,29996,29996,29997]} 1. Nf3 {[%emt 0:00:03]} d5 {[%emt 0:00:02]} 2. g3 {[%emt 0:00:02]} Nf6 {[%emt 0:00:01]} 3. Bg2 {[%emt 0:00:01]} c5 {[%emt 0:00:01]} 4. O-O {[%emt 0:00:02]} e6 {[%emt 0:00:01]} 5. c4 {[%emt 0:00:01]} d4 {[%emt 0:00:01]} 6. e3 {[%emt 0:00:01]} Nc6 {[%emt 0:00:01]} 7. exd4 {[%emt 0:00:01]} cxd4 {[%emt 0:00:01]} 8. d3 {[%emt 0:00:02]} Bd6 {[%emt 0:00:01] A13: English Opening: 1...e6.} 9. Bg5 {[%emt 0:00:02]} h6 {[%emt 0:00:01]} 10. Bxf6 {[%emt 0:00:02]} Qxf6 {[%emt 0:00:01] The position is equal.} 11. Nbd2 {[%emt 0:00:01]} Qe7 {[%emt 0:00:01]} 12. Re1 {[%emt 0:00:06]} O-O {[%emt 0:00:02]} 13. a3 {[%emt 0:00:01]} a5 $1 {[%emt 0:00:01] Inhibits b4.} 14. Nb3 {[%emt 0:00:06] [#] 14.Rc1 injects fresh life into this line.} Bc5 $146 {[%emt 0:09:01]} ({Predecessor:} 14... Rd8 15. Nbxd4 Nxd4 16. Nxd4 Bxg3 17. hxg3 Rxd4 18. Qc2 e5 19. f4 Bf5 20. Rxe5 Qf6 {½-½ (40) Sevian,S (2703)-Bjerre,J (2610) Saint Louis 2022}) 15. Nxc5 {[%emt 0:04:50]} Qxc5 {[%emt 0:00:03]} 16. Qe2 {[%emt 0:00:04][%cal Ob2b4] Threatening b4!} Bd7 {[%emt 0:03:32]} 17. Nd2 {[%emt 0:01:05]} f5 {[%emt 0:01:40]} (17... a4 $11) 18. f4 {[%emt 0:00:35]} Rab8 {[%emt 0:01:47]} 19. Rac1 {[%emt 0:01:21]} a4 {[%emt 0:03:45]} 20. h3 {[%emt 0:04:33]} (20. Qf2 $14 {deserves consideration.}) 20... Rfe8 {[%emt 0:03:53]} 21. Qh5 {[%emt 0:01:56]} Rf8 {[%emt 0:02:55]} 22. Nf3 {[%emt 0:04:03]} (22. Qd1 $14) 22... Be8 $11 {[%emt 0:01:25]} 23. Qh4 {[%emt 0:00:01]} Ne7 {[%emt 0:00:01] Threatens to win with ...Ng6.} 24. Ne5 {[%emt 0:00:04]} b6 {[%emt 0:00:30]} 25. Rf1 {[%emt 0:05:35]} Nc6 {[%emt 0:00:20]} 26. Rce1 {[%emt 0:00:20]} Ne7 {[%emt 0:00:03]} 27. g4 {[%emt 0:01:35]} b5 {[%emt 0:00:13]} 28. g5 {[%emt 0:00:03]} h5 {[%emt 0:00:04]} (28... hxg5 $11 {remains equal.} 29. Qxg5 (29. fxg5 bxc4 30. Nxc4 Ng6 $15) 29... bxc4 30. Nxc4 Rf6) 29. Qf2 $36 {[%emt 0:00:17][%mdl 2048] White has strong initiative. White is more active.} bxc4 {[%emt 0:00:14]} 30. Nxc4 {[%emt 0:00:04]} Bf7 {[%emt 0:00:11]} 31. Ne5 {[%emt 0:00:40]} Be8 {[%emt 0:00:00] Prevents Nd7.} ({Black should play} 31... Qd6 $14) 32. Nf3 {[%emt 0:00:13]} (32. Bf3 $16) 32... Nc6 {[%emt 0:00:25]} (32... Qb6 $11) 33. Rxe6 {[%emt 0:00:09]} Bf7 {[%emt 0:00:03]} 34. Re2 {[%emt 0:00:29]} Rfe8 {[%emt 0:00:16]} 35. Rxe8+ {[%emt 0:01:03]} Rxe8 {[%emt 0:00:02]} 36. Re1 {[%emt 0:00:01]} Re3 {[%emt 0:00:13]} 37. Nh4 {[%emt 0:00:39]} (37. Qd2 $1 $16) 37... Ne7 $1 {[%emt 0:00:10]} 38. Qd2 {[%emt 0:00:25]} Nd5 $2 {[%emt 0:00:11]} (38... Ng6 $11 39. Nxg6 Bxg6) 39. Nxf5 $2 {[%emt 0:00:11]} (39. Rc1 $18 Qd6 40. Nxf5 Qxf4 41. Nxe3 Nxe3 42. Rc8+ Kh7 43. Be4+ (43. Rf8 Qc7 $18) 43... Bg6 44. Bxg6+ Kxg6 45. Qf2 Qxg5+ 46. Kh2) 39... Rxe1+ {[%emt 0:00:10]} 40. Qxe1 {[%emt 0:00:01]} Nxf4 {[%emt 0:00:07]} 41. Ng3 {[%emt 0:00:30][%mdl 8192]} (41. Qe4 $11 {and White is okay.} Qc1+ 42. Kh2) 41... Nxd3 $2 {[%emt 0:00:06]} (41... Qxg5 $19 42. Qf2 h4) 42. Qe4 {[%emt 0:00:08] [#]} Nxb2 {[%emt 0:00:11][%mdl 8192] [#]} (42... Ne5 $1 $17 {aiming for ...d3+.} 43. Nf1 Ng6 44. Qa8+ Kh7) 43. g6 $1 $18 {[%emt 0:00:20]} Bb3 $2 {[%emt 0:00:21]} (43... Bxg6 $18 44. Qxg6 d3+ 45. Kh1 (45. Kh2 Qe5 $18) 45... Qe5) 44. Qa8+ {[%emt 0:00:18]} Qf8 {[%emt 0:00:01]} 45. Bd5+ {[%emt 0:00:01] Weighted Error Value: White=0.47/Black=0.76} 1-0

[Event "Chinese League Div-A Rapid 2022"]
[Site "Fuling,Chongqing"]
[Date "2022.09.10"]
[Round "4.5"]
[White "Ni, Shiqun"]
[Black "Yang, Yijing"]
[Result "1/2-1/2"]
[ECO "C01"]
[WhiteElo "2371"]
[BlackElo "2022"]
[Annotator "RC"]
[PlyCount "107"]
[EventDate "2022.09.07"]
[EventType "team-tourn"]
[EventCountry "CHN"]
[SourceTitle "playchess.com"]
[Source "ChessBase"]
[SourceQuality "1"]
[TimeControl "1500+10"]

1. e4 {[%emt 0:00:01]} e6 {[%emt 0:00:02]} 2. d4 {[%emt 0:00:02]} d5 {[%emt 0:00:02]} 3. exd5 {[%emt 0:00:01]} exd5 {[%emt 0:00:02]} 4. Nf3 {[%emt 0:00:02]} Bd6 {[%emt 0:00:05]} 5. c4 {[%emt 0:00:03]} c6 {[%emt 0:03:28]} 6. Nc3 {[%emt 0:00:04]} Ne7 {[%emt 0:01:17]} 7. Bd3 {[%emt 0:00:20]} dxc4 {[%emt 0:01:18]} 8. Bxc4 {[%emt 0:00:03]} O-O {[%emt 0:00:06]} 9. O-O {[%emt 0:01:06]} Bg4 {[%emt 0:04:10]} 10. Bg5 {[%emt 0:04:02]} h6 {[%emt 0:01:13]} 11. Bh4 {[%emt 0:00:05]} Qc7 {[%emt 0:00:49]} 12. Bg3 {[%emt 0:01:22]} Bxg3 {[%emt 0:00:56]} 13. fxg3 {[%emt 0:01:50]} Nd7 {[%emt 0:01:06]} 14. Qd2 {[%emt 0:02:28]} Rad8 {[%emt 0:01:09]} 15. Qf2 {[%emt 0:04:12]} Nb6 {[%emt 0:03:28]} 16. Bb3 {[%emt 0:01:00]} Nbd5 {[%emt 0:02:10]} 17. Ne5 {[%emt 0:03:30]} Be6 {[%emt 0:00:04]} 18. Ne4 {[%emt 0:00:17]} b6 {[%emt 0:00:13]} 19. Rac1 {[%emt 0:00:22]} f6 {[%emt 0:02:17]} 20. Nf3 {[%emt 0:00:10]} Qd7 {[%emt 0:00:23]} 21. Rfe1 {[%emt 0:01:24]} Rfe8 {[%emt 0:00:27]} 22. h3 {[%emt 0:01:31]} Bf7 {[%emt 0:00:23]} 23. g4 {[%emt 0:00:29]} Ng6 {[%emt 0:00:33]} 24. Ng3 {[%emt 0:01:17]} Ngf4 {[%emt 0:00:27]} 25. Qd2 {[%emt 0:00:29]} Rxe1+ {[%emt 0:00:43]} 26. Rxe1 {[%emt 0:00:01]} Re8 {[%emt 0:00:04]} 27. Nf5 {[%emt 0:00:10]} Rxe1+ {[%emt 0:00:53]} 28. Qxe1 {[%emt 0:00:01]} Qe6 {[%emt 0:00:14]} 29. Kf1 {[%emt 0:01:35]} Qxe1+ {[%emt 0:00:25]} 30. Nxe1 {[%emt 0:00:01]} Kf8 {[%emt 0:00:42]} 31. Kf2 {[%emt 0:00:32]} Nb4 {[%emt 0:00:34]} 32. Bxf7 {[%emt 0:00:08]} Kxf7 {[%emt 0:00:01]} 33. Kf3 {[%emt 0:00:30]} Nfd3 {[%emt 0:00:20]} 34. Nxd3 {[%emt 0:00:03]} Nxd3 {[%emt 0:00:01]} 35. Ke4 {[%emt 0:01:15]} Nxb2 {[%emt 0:00:02]} 36. d5 {[%emt 0:00:00]} cxd5+ {[%emt 0:00:24]} 37. Kxd5 {[%emt 0:00:02]} Nd3 {[%emt 0:00:06]} 38. Nd6+ {[%emt 0:00:21]} Kg6 {[%emt 0:00:06]} 39. Nc8 {[%emt 0:00:17]} Nb4+ {[%emt 0:00:22]} 40. Kc4 {[%emt 0:00:16]} Nxa2 {[%emt 0:00:03]} 41. Nxa7 {[%emt 0:00:01]} Nc1 {[%emt 0:00:16]} 42. Nc8 {[%emt 0:00:02]} Kg5 {[%emt 0:00:16]} 43. Nxb6 {[%emt 0:00:13]} Kf4 {[%emt 0:00:14]} 44. Nd5+ {[%emt 0:00:23]} Kg3 {[%emt 0:00:03]} 45. Ne3 {[%emt 0:00:00]} Ne2 {[%emt 0:00:20]} 46. Nf5+ {[%emt 0:00:19]} Kxg2 {[%emt 0:00:04]} 47. Nxg7 {[%emt 0:00:01]} Kxh3 {[%emt 0:00:10]} 48. Nf5 {[%emt 0:00:10]} Kxg4 {[%emt 0:00:07]} 49. Nxh6+ {[%emt 0:00:01]} Kh5 {[%emt 0:00:16]} 50. Nf5 {[%emt 0:00:02]} Kg5 {[%emt 0:00:04]} 51. Ne3 {[%emt 0:00:12]} Ng3 {[%emt 0:00:18]} 52. Kd3 {[%emt 0:00:08]} Nf5 {[%emt 0:00:10]} 53. Nd5 {[%emt 0:00:03]} Ng3 {[%emt 0:00:02]} 54. Nxf6 {[%emt 0:00:01]} 1/2-1/2